fUSD/lending_fUSD_20260617
["ID","MTS","AMOUNT","RATE_DAILY","PERIOD"]
[425307203,1781686240000,-157.0,0.00022,2]
[425307196,1781686240000,-152.0,0.00022,2]
[425307273,1781686241000,-151.0,0.00023,2]
[425307265,1781686241000,-500.0,0.00022971,2]
[425307267,1781686241000,-152.0,0.00022971,2]
[425307268,1781686241000,-151.0,0.00022971,2]
[425307266,1781686241000,-500.0,0.00022971,2]
[425307271,1781686241000,-8000.0,0.00023,2]
[425307269,1781686241000,-500.0,0.00022971,2]
[425307274,1781686241000,-825.0,0.00023,2]
[425307258,1781686241000,-203.56087746,0.00022971,2]
[425307264,1781686241000,-152.0,0.00022971,2]
[425307281,1781686241000,-7632.0,0.00023,2]
[425307276,1781686241000,-166.0,0.00023,2]
[425307270,1781686241000,-670.58624095,0.00022971,2]
[425307272,1781686241000,-166.86406734,0.00023,2]
[425307277,1781686241000,-244.0,0.00023,2]
[425307278,1781686241000,-156.0,0.00023,2]
[425307282,1781686241000,-150.0,0.00023014,2]
[425307280,1781686241000,-411.0,0.00023,2]
[425307279,1781686241000,-172.0,0.00023,2]
[425307285,1781686241000,-155.54979704,0.00023081,2]
[425307257,1781686241000,-152.0,0.00022971,2]
[425307275,1781686241000,-784.0,0.00023,2]
[425307259,1781686241000,-151.0,0.00022971,2]
[425307238,1781686241000,-224.80846043,0.00022407,2]
[425307262,1781686241000,-152.0,0.00022971,2]
[425307284,1781686241000,-151.0,0.00023026,2]
[425307237,1781686241000,-432.98541341,0.00022407,2]
[425307239,1781686241000,-432.98541339,0.00022407,2]
[425307240,1781686241000,-432.98541339,0.00022407,2]
[425307241,1781686241000,-179.03729174,0.00022407,2]
[425307242,1781686241000,-1204.35478046,0.00022418,2]
[425307247,1781686241000,-972.82,0.00022658,2]
[425307244,1781686241000,-2005.9555727,0.00022617,2]
[425307252,1781686241000,-798.79759603,0.000229,2]
[425307251,1781686241000,-1861.47,0.00022691,2]
[425307260,1781686241000,-500.0,0.00022971,2]
[425307249,1781686241000,-12185.95,0.00022691,2]
[425307248,1781686241000,-172.549423,0.00022667,2]
[425307245,1781686241000,-160.0,0.0002265,2]
[425307246,1781686241000,-216.17170803,0.00022651,2]
[425307250,1781686241000,-615.77,0.00022691,2]
[425307253,1781686241000,-189.67096,0.00022954,14]
[425307254,1781686241000,-155.54979704,0.00022971,2]
[425307255,1781686241000,-151.0,0.00022971,2]
[425307256,1781686241000,-174.61919142,0.00022971,2]
[425307261,1781686241000,-578.20924308,0.00022971,2]
[425307263,1781686241000,-500.0,0.00022971,2]
[425307243,1781686241000,-798.79759603,0.000226,2]
[425307283,1781686241000,-155.54979704,0.00023026,2]
[425307332,1781686241000,-357.88151182,0.00023837,2]
[425307287,1781686241000,-798.79759603,0.000231,2]
[425307316,1781686241000,-219.64500731,0.00023581,2]
[425307314,1781686241000,-500.0,0.00023513,2]
[425307315,1781686241000,-151.0,0.00023519,2]
[425307313,1781686241000,-578.54715606,0.00023513,2]
[425307320,1781686241000,-1228.0,0.00023581,2]
[425307319,1781686241000,-383.0,0.00023581,2]
[425307317,1781686241000,-410.57799269,0.00023581,2]
[425307318,1781686241000,-1359.0,0.00023581,2]
[425307321,1781686241000,-154.078,0.00023581,2]
[425307325,1781686241000,-500.0,0.00023741,2]
[425307311,1781686241000,-2979.84840543,0.00023481,2]
[425307331,1781686241000,-314.16688825,0.00023837,2]
[425307328,1781686241000,-984.68337832,0.00023837,2]
[425307326,1781686241000,-6751.47524783,0.00023837,2]
[425307323,1781686241000,-798.79759603,0.000236,2]
[425307327,1781686241000,-1203.69952199,0.00023837,2]
[425307329,1781686241000,-351.02307539,0.00023837,2]
[425307330,1781686241000,-491.0360497,0.00023837,2]
[425307333,1781686241000,-985.83311175,0.00023837,2]
[425307334,1781686241000,-315.42809693,0.00023837,2]
[425307335,1781686241000,-1663.6855344,0.00023837,2]
[425307288,1781686241000,-2080.17592889,0.00023165,2]
[425307324,1781686241000,-2157.14243826,0.00023713,2]
[425307322,1781686241000,-419.0,0.00023581,2]
[425307336,1781686241000,-587.87764851,0.00023837,2]
[425307309,1781686241000,-102.79691172,0.00023422,5]
[425307286,1781686241000,-151.0,0.00023081,2]
[425307290,1781686241000,-277.10402258,0.000233,2]
[425307292,1781686241000,-143.51428229,0.000233,2]
[425307291,1781686241000,-378.17929116,0.000233,2]
[425307298,1781686241000,-208.27878834,0.00023399,3]
[425307289,1781686241000,-5729.19,0.00023258,7]
[425307312,1781686241000,-500.0,0.00023513,2]
[425307294,1781686241000,-500.0,0.00023356,7]
[425307296,1781686241000,-500.0,0.00023356,7]
[425307295,1781686241000,-500.0,0.00023356,7]
[425307297,1781686241000,-216.642,0.00023356,3]
[425307293,1781686241000,-213.86,0.00023354,2]
[425307301,1781686241000,-1094.97355315,0.00023422,5]
[425307300,1781686241000,-1031.18425885,0.00023399,3]
[425307302,1781686241000,-1050.21288401,0.00023422,5]
[425307310,1781686241000,-950.9594312,0.00023422,5]
[425307306,1781686241000,-509.83413308,0.00023422,5]
[425307303,1781686241000,-434.0497215,0.00023422,5]
[425307305,1781686241000,-619.79667337,0.00023422,5]
[425307304,1781686241000,-621.76332663,0.00023422,5]
[425307307,1781686241000,-1070.66862582,0.00023422,5]
[425307299,1781686241000,-468.75595281,0.00023399,3]
[425307308,1781686241000,-1109.30925944,0.00023422,5]
[425307370,1781686243000,-185.62677642,0.0002411,2]
[425307366,1781686243000,-500.0,0.0002411,2]
[425307365,1781686243000,-500.0,0.0002411,2]
[425307364,1781686243000,-500.0,0.0002411,2]
[425307368,1781686243000,-543.88098765,0.0002411,2]
[425307360,1781686243000,-151.0,0.00024067,2]
[425307363,1781686243000,-500.0,0.0002411,2]
[425307367,1781686243000,-500.0,0.0002411,2]
[425307369,1781686243000,-150.0,0.0002411,2]
[425307384,1781686243000,-8468.98,0.000245,5]
[425307375,1781686243000,-265.0,0.00024236,2]
[425307381,1781686243000,-500.0,0.00024452,7]
[425307376,1781686243000,-700.0,0.00024246,2]
[425307379,1781686243000,-350.0,0.00024428,2]
[425307373,1781686243000,-500.0,0.00024173,2]
[425307374,1781686243000,-2979.8484054,0.00024183,2]
[425307377,1781686243000,-1855.44749635,0.00024261,2]
[425307378,1781686243000,-248.0,0.00024324,2]
[425307382,1781686243000,-1833.2865623,0.00024461,2]
[425307362,1781686243000,-500.0,0.0002411,2]
[425307372,1781686243000,-500.0,0.00024173,2]
[425307371,1781686243000,-150.0,0.00024164,2]
[425307352,1781686243000,-784.0,0.00024,2]
[425307358,1781686243000,-763.0,0.00024,7]
[425307385,1781686243000,-5092.08149784,0.000245,2]
[425307340,1781686243000,-264.0,0.00019452,2]
[425307337,1781686243000,-150.0,0.00016179,2]
[425307341,1781686243000,-770.86582448,0.0002091,2]
[425307338,1781686243000,-2058.74522651,0.000183,3]
[425307339,1781686243000,-1804.25477349,0.000183,3]
[425307344,1781686243000,-11238.79310361,0.00023837,2]
[425307347,1781686243000,-90642.27307411,0.00023837,2]
[425307346,1781686243000,-780.23250482,0.00023837,2]
[425307345,1781686243000,-6237.09378467,0.00023837,2]
[425307361,1781686243000,-500.0,0.0002411,2]
[425307342,1781686243000,-770.86582448,0.00022021,2]
[425307348,1781686243000,-500.0,0.0002391,2]
[425307350,1781686243000,-154.10129498,0.00024,2]
[425307349,1781686243000,-500.0,0.00023999,2]
[425307354,1781686243000,-172.0,0.00024,2]
[425307351,1781686243000,-825.0,0.00024,2]
[425307353,1781686243000,-244.0,0.00024,2]
[425307359,1781686243000,-500.0,0.00024009,2]
[425307356,1781686243000,-10761.05351995,0.00024,2]
[425307357,1781686243000,-172.549423,0.00024,2]
[425307355,1781686243000,-411.0,0.00024,2]
[425307343,1781686243000,-934.0,0.00023581,2]
[425307383,1781686243000,-1041.0,0.00024483,5]
[425307380,1781686243000,-200.0,0.00024436,2]
[425307387,1781686243000,-151.0,0.00024615,2]
[425307409,1781686243000,-168.15625109,0.00024893,2]
[425307415,1781686243000,-50000.0,0.0002495,2]
[425307412,1781686243000,-250.0,0.00024926,6]
[425307416,1781686243000,-390.35293017,0.00024979,2]
[425307418,1781686243000,-62866.01011286,0.00025,2]
[425307420,1781686243000,-150.0,0.00025,2]
[425307419,1781686243000,-757.0101,0.00025,3]
[425307421,1781686243000,-150.0,0.00025,2]
[425307423,1781686243000,-150.0,0.00025,2]
[425307422,1781686243000,-150.0,0.00025,2]
[425307411,1781686243000,-1642.0703,0.000249,2]
[425307424,1781686243000,-150.0,0.00025,2]
[425307428,1781686243000,-326.0,0.00025,2]
[425307426,1781686243000,-150.0,0.00025,14]
[425307427,1781686243000,-151.0,0.00025,2]
[425307431,1781686243000,-249.130233,0.00025,2]
[425307430,1781686243000,-797.0,0.00025,2]
[425307432,1781686243000,-152.5629,0.00025,2]
[425307433,1781686243000,-188.0,0.00025,2]
[425307434,1781686243000,-429.03798486,0.00025,2]
[425307435,1781686243000,-9465.0,0.00025,2]
[425307386,1781686243000,-18589.4570875,0.00024531,2]
[425307425,1781686243000,-150.0,0.00025,2]
[425307410,1781686243000,-2048.366,0.000249,2]
[425307429,1781686243000,-827.30470314,0.00025,2]
[425307414,1781686243000,-250.0,0.00024926,6]
[425307391,1781686243000,-500.0,0.00024745,2]
[425307413,1781686243000,-250.0,0.00024926,6]
[425307389,1781686243000,-558.65,0.00024658,2]
[425307388,1781686243000,-1000.0,0.00024658,2]
[425307393,1781686243000,-300.0,0.0002475,7]
[425307390,1781686243000,-541.34,0.00024658,2]
[425307394,1781686243000,-500.0,0.00024799,2]
[425307405,1781686243000,-1148.064422,0.00024802,2]
[425307395,1781686243000,-500.0,0.00024799,2]
[425307404,1781686243000,-1000.0,0.000248,2]
[425307397,1781686243000,-500.0,0.00024799,2]
[425307392,1781686243000,-574.57860626,0.00024746,2]
[425307402,1781686243000,-316.0,0.000248,2]
[425307403,1781686243000,-310.0,0.000248,2]
[425307401,1781686243000,-500.0,0.00024799,2]
[425307398,1781686243000,-393.8,0.00024799,2]
[425307396,1781686243000,-500.0,0.00024799,2]
[425307399,1781686243000,-500.0,0.00024799,2]
[425307400,1781686243000,-500.0,0.00024799,2]
[425307407,1781686243000,-558.65,0.00024886,7]
[425307417,1781686243000,-869.42,0.00024999,2]
[425307406,1781686243000,-2979.8484054,0.00024885,2]
[425307408,1781686243000,-541.34,0.00024886,7]
[425307478,1781686244000,-847.2897549,0.00025956,2]
[425307475,1781686244000,-847.2897549,0.00025917,2]
[425307473,1781686244000,-847.2897549,0.0002589,2]
[425307474,1781686244000,-200.0,0.000259,9]
[425307472,1781686244000,-273.0,0.00025863,2]
[425307470,1781686244000,-541.34,0.000258,30]
[425307469,1781686244000,-558.65,0.000258,30]
[425307468,1781686244000,-151.0,0.00025711,2]
[425307467,1781686244000,-695.39793187,0.0002571,2]
[425307471,1781686244000,-207.51,0.00025816,2]
[425307477,1781686244000,-847.2897549,0.00025956,2]
[425307476,1781686244000,-213.86,0.00025949,120]
[425307480,1781686244000,-847.2897549,0.00025983,2]
[425307494,1781686244000,-300.0,0.00026,7]
[425307488,1781686244000,-27491.74252932,0.00026,10]
[425307481,1781686244000,-847.2897549,0.00025984,2]
[425307482,1781686244000,-847.2897549,0.00025988,2]
[425307487,1781686244000,-321.78488955,0.00025999,2]
[425307484,1781686244000,-1094.88498598,0.00025999,10]
[425307485,1781686244000,-869.42,0.00025999,2]
[425307483,1781686244000,-293.33,0.0002599,2]
[425307486,1781686244000,-500.0,0.00025999,2]
[425307489,1781686244000,-227629.23033335,0.00026,2]
[425307493,1781686244000,-2594.31595137,0.00026,2]
[425307498,1781686244000,-541.34,0.00026029,2]
[425307465,1781686244000,-2979.8484054,0.00025587,2]
[425307479,1781686244000,-847.2897549,0.00025982,2]
[425307466,1781686244000,-599.60298507,0.0002571,2]
[425307437,1781686244000,-949.90443279,0.00025,2]
[425307457,1781686244000,-150.0,0.0002548,2]
[425307492,1781686244000,-160.0,0.00026,10]
[425307441,1781686244000,-293.33,0.00025,2]
[425307439,1781686244000,-167.87789616,0.00025,2]
[425307440,1781686244000,-293.33,0.00025,2]
[425307438,1781686244000,-1111.7951572,0.00025,2]
[425307436,1781686244000,-200.0,0.00025,10]
[425307442,1781686244000,-152.0,0.00025047,3]
[425307445,1781686244000,-1050.0,0.000251,5]
[425307444,1781686244000,-3753.0,0.00025087,3]
[425307448,1781686244000,-430.81621874,0.00025114,2]
[425307450,1781686244000,-541.34,0.00025115,30]
[425307451,1781686244000,-151.0,0.00025163,2]
[425307443,1781686244000,-152.0,0.00025052,7]
[425307446,1781686244000,-300.0,0.000251,2]
[425307447,1781686244000,-300.0,0.000251,10]
[425307452,1781686244000,-200.0,0.00025257,4]
[425307449,1781686244000,-558.65,0.00025115,30]
[425307454,1781686244000,-541.34,0.00025343,2]
[425307464,1781686244000,-541.34,0.00025572,7]
[425307453,1781686244000,-558.65,0.00025343,2]
[425307456,1781686244000,-437.0,0.00025403,10]
[425307455,1781686244000,-150.0,0.00025373,2]
[425307462,1781686244000,-500.0,0.00025548,7]
[425307463,1781686244000,-558.65,0.00025572,7]
[425307458,1781686244000,-273.0,0.00025488,2]
[425307459,1781686244000,-620.35540165,0.00025534,14]
[425307460,1781686244000,-500.0,0.00025548,7]
[425307461,1781686244000,-500.0,0.00025548,7]
[425307495,1781686244000,-4000.0,0.00026,3]
[425307519,1781686244000,-558.65,0.00026486,30]
[425307490,1781686244000,-8370.9302209,0.00026,2]
[425307535,1781686244000,-151.0,0.00026807,2]
[425307536,1781686244000,-201.24609149,0.00026839,2]
[425307526,1781686244000,-150.0,0.00026545,5]
[425307532,1781686244000,-150.0,0.00026641,2]
[425307537,1781686244000,-205.49711767,0.0002685,2]
[425307527,1781686244000,-1359.0,0.00026581,2]
[425307525,1781686244000,-5845.6629,0.00026534,14]
[425307530,1781686244000,-934.0,0.00026581,2]
[425307528,1781686244000,-383.0,0.00026581,2]
[425307529,1781686244000,-419.0,0.00026581,2]
[425307538,1781686244000,-2252.54319602,0.00026885,2]
[425307541,1781686244000,-558.65,0.00026943,7]
[425307534,1781686244000,-541.34,0.00026714,2]
[425307544,1781686244000,-221.47164762,0.00026985,7]
[425307545,1781686244000,-171.03439202,0.00026985,7]
[425307543,1781686244000,-359.62899,0.00026946,7]
[425307540,1781686244000,-791.0056983,0.00026885,2]
[425307542,1781686244000,-541.34,0.00026943,7]
[425307546,1781686244000,-154.52806676,0.00026986,7]
[425307539,1781686244000,-627.39910709,0.00026885,2]
[425307548,1781686244000,-163.28236333,0.00026986,7]
[425307550,1781686244000,-157.71247439,0.00026986,7]
[425307549,1781686244000,-171.98510608,0.00026986,7]
[425307551,1781686244000,-153.05305866,0.00026986,7]
[425307552,1781686244000,-160.10656824,0.00026986,7]
[425307553,1781686244000,-172.28414386,0.00026986,7]
[425307547,1781686244000,-170.70173325,0.00026986,7]
[425307533,1781686244000,-558.65,0.00026714,2]
[425307497,1781686244000,-558.65,0.00026029,2]
[425307523,1781686244000,-2888.0873529,0.00026534,14]
[425307531,1781686244000,-273.0,0.00026613,2]
[425307499,1781686244000,-1637.12771993,0.00026034,14]
[425307491,1781686244000,-562.8,0.00026,2]
[425307501,1781686244000,-152.0,0.00026058,4]
[425307512,1781686244000,-2979.8484054,0.00026289,2]
[425307506,1781686244000,-847.2897549,0.00026181,2]
[425307510,1781686244000,-541.34,0.00026257,7]
[425307508,1781686244000,-243.42648795,0.00026257,4]
[425307500,1781686244000,-847.2897549,0.00026042,2]
[425307511,1781686244000,-151.0,0.00026259,2]
[425307502,1781686244000,-847.2897549,0.00026064,2]
[425307503,1781686244000,-5629.0,0.00026091,3]
[425307504,1781686244000,-1419.0,0.000261,2]
[425307496,1781686244000,-847.2897549,0.00026003,2]
[425307507,1781686244000,-273.0,0.00026238,2]
[425307520,1781686244000,-541.34,0.00026486,30]
[425307554,1781686244000,-273.0,0.00026988,2]
[425307522,1781686244000,-500.0,0.00026533,2]
[425307518,1781686244000,-847.2897549,0.00026328,2]
[425307521,1781686244000,-350.0,0.00026507,2]
[425307524,1781686244000,-4320.40595478,0.00026534,14]
[425307517,1781686244000,-847.2897549,0.00026323,2]
[425307515,1781686244000,-189.44106889,0.00026323,2]
[425307513,1781686244000,-248.0,0.00026296,2]
[425307514,1781686244000,-5796.91,0.00026313,2]
[425307505,1781686244000,-355.39525395,0.000261,2]
[425307516,1781686244000,-189.44106889,0.00026323,2]
[425307509,1781686244000,-558.65,0.00026257,7]
[425307589,1781686245000,-1500.0,0.00027241,2]
[425307592,1781686245000,-242.66231624,0.00027297,2]
[425307585,1781686245000,-246.47017581,0.00027129,2]
[425307578,1781686245000,-516.70824417,0.0002706,2]
[425307584,1781686245000,-152.0,0.0002707,5]
[425307590,1781686245000,-1500.0,0.00027241,2]
[425307583,1781686245000,-151.0,0.0002706,2]
[425307588,1781686245000,-1500.0,0.00027241,2]
[425307586,1781686245000,-558.65,0.00027171,30]
[425307587,1781686245000,-541.34,0.00027171,30]
[425307599,1781686245000,-500.0,0.00027397,2]
[425307593,1781686245000,-7506.0,0.00027345,10]
[425307591,1781686245000,-1500.0,0.00027241,2]
[425307596,1781686245000,-273.0,0.00027363,2]
[425307595,1781686245000,-186.33117265,0.00027362,2]
[425307598,1781686245000,-301.12904567,0.00027387,2]
[425307601,1781686245000,-501.16862779,0.00027397,2]
[425307597,1781686245000,-171.78335883,0.00027375,2]
[425307600,1781686245000,-426.87,0.00027397,2]
[425307603,1781686245000,-473.77742121,0.00027397,2]
[425307605,1781686245000,-500.0,0.00027397,2]
[425307577,1781686245000,-4730.75089867,0.0002706,2]
[425307594,1781686245000,-151.0,0.00027355,2]
[425307579,1781686245000,-545.85460464,0.0002706,2]
[425307566,1781686245000,-212.04596777,0.00026991,7]
[425307574,1781686245000,-150.0,0.00027023,2]
[425307559,1781686245000,-174.55695281,0.0002699,7]
[425307560,1781686245000,-168.35305832,0.0002699,7]
[425307557,1781686245000,-173.2690676,0.0002699,7]
[425307558,1781686245000,-192.75289246,0.0002699,7]
[425307556,1781686245000,-133.52947126,0.0002699,7]
[425307555,1781686245000,-42.04968786,0.0002699,7]
[425307561,1781686245000,-103.14463658,0.0002699,7]
[425307562,1781686245000,-70.88403253,0.0002699,7]
[425307563,1781686245000,-194.50100576,0.0002699,7]
[425307564,1781686245000,-188.49368938,0.0002699,7]
[425307576,1781686245000,-1167.49129996,0.0002706,2]
[425307570,1781686245000,-250.64953967,0.00026992,2]
[425307569,1781686245000,-2497.01234528,0.00026992,2]
[425307571,1781686245000,-3703.19224091,0.00026998,2]
[425307568,1781686245000,-232.18652045,0.00026992,2]
[425307567,1781686245000,-175.06580264,0.00026991,7]
[425307565,1781686245000,-205.181842,0.0002699,2]
[425307572,1781686245000,-2093.71775909,0.00026998,2]
[425307580,1781686245000,-3825.20700516,0.0002706,2]
[425307581,1781686245000,-299.12031752,0.0002706,2]
[425307582,1781686245000,-23746.95929108,0.0002706,2]
[425307575,1781686245000,-869.42,0.00027059,2]
[425307602,1781686245000,-500.0,0.00027397,2]
[425307604,1781686245000,-26.22257879,0.00027397,2]
[425307573,1781686245000,-150.0,0.00027,2]
[425307610,1781686245000,-500.0,0.00027397,2]
[425307634,1781686245000,-1000.0,0.00027397,2]
[425307633,1781686245000,-1000.0,0.00027397,2]
[425307640,1781686245000,-1000.0,0.00027397,2]
[425307641,1781686245000,-1000.0,0.00027397,2]
[425307637,1781686245000,-1000.0,0.00027397,2]
[425307642,1781686245000,-1000.0,0.00027397,2]
[425307643,1781686245000,-1000.0,0.00027397,2]
[425307644,1781686245000,-1000.0,0.00027397,2]
[425307653,1781686245000,-1000.0,0.00027397,2]
[425307648,1781686245000,-555.66455442,0.00027397,2]
[425307646,1781686245000,-1000.0,0.00027397,2]
[425307651,1781686245000,-1000.0,0.00027397,2]
[425307652,1781686245000,-1000.0,0.00027397,2]
[425307650,1781686245000,-1000.0,0.00027397,2]
[425307647,1781686245000,-444.33544558,0.00027397,2]
[425307649,1781686245000,-1000.0,0.00027397,2]
[425307658,1781686245000,-1000.0,0.00027397,2]
[425307654,1781686245000,-1000.0,0.00027397,2]
[425307657,1781686245000,-1000.0,0.00027397,2]
[425307659,1781686245000,-425.60948558,0.00027397,2]
[425307656,1781686245000,-1000.0,0.00027397,2]
[425307655,1781686245000,-1000.0,0.00027397,2]
[425307606,1781686245000,-500.0,0.00027397,2]
[425307636,1781686245000,-1000.0,0.00027397,2]
[425307635,1781686245000,-1000.0,0.00027397,2]
[425307645,1781686245000,-1000.0,0.00027397,2]
[425307632,1781686245000,-1000.0,0.00027397,2]
[425307608,1781686245000,-500.0,0.00027397,2]
[425307631,1781686245000,-1000.0,0.00027397,2]
[425307612,1781686245000,-295.5957398,0.00027397,2]
[425307614,1781686245000,-226.11356794,0.00027397,7]
[425307611,1781686245000,-490.66911066,0.00027397,2]
[425307613,1781686245000,-346.16353807,0.00027397,2]
[425307615,1781686245000,-249.9347312,0.00027397,7]
[425307617,1781686245000,-264.0,0.00020821,2]
[425307619,1781686245000,-1000.0,0.00027397,2]
[425307620,1781686245000,-1000.0,0.00027397,2]
[425307618,1781686245000,-601.89046948,0.00027397,2]
[425307629,1781686245000,-45.60639324,0.00027397,2]
[425307616,1781686245000,-398.10953052,0.00027397,2]
[425307621,1781686245000,-1000.0,0.00027397,2]
[425307639,1781686245000,-1000.0,0.00027397,2]
[425307622,1781686245000,-1000.0,0.00027397,2]
[425307630,1781686245000,-954.39360676,0.00027397,2]
[425307625,1781686245000,-1000.0,0.00027397,2]
[425307627,1781686245000,-1000.0,0.00027397,2]
[425307638,1781686245000,-1000.0,0.00027397,2]
[425307626,1781686245000,-1000.0,0.00027397,2]
[425307628,1781686245000,-1000.0,0.00027397,2]
[425307623,1781686245000,-1000.0,0.00027397,2]
[425307624,1781686245000,-1000.0,0.00027397,2]
[425307673,1781686246000,-369.945665,0.00027397,2]
[425307679,1781686246000,-11118.87,0.00027397,10]
[425307677,1781686246000,-1156.144668,0.00027397,2]
[425307674,1781686246000,-151.0,0.00027397,2]
[425307680,1781686246000,-160.1885368,0.00027397,7]
[425307676,1781686246000,-1156.144668,0.00027397,2]
[425307675,1781686246000,-1156.144668,0.00027397,2]
[425307678,1781686246000,-1156.144668,0.00027397,2]
[425307672,1781686246000,-369.945665,0.00027397,2]
[425307670,1781686246000,-369.945665,0.00027397,2]
[425307661,1781686246000,-966.31273157,0.00027397,2]
[425307671,1781686246000,-369.945665,0.00027397,2]
[425307665,1781686246000,-500.0,0.00027397,2]
[425307663,1781686246000,-500.0,0.00027397,2]
[425307668,1781686246000,-1500.0,0.00027397,2]
[425307664,1781686246000,-500.0,0.00027397,2]
[425307660,1781686246000,-574.39051442,0.00027397,2]
[425307662,1781686246000,-500.0,0.00027397,2]
[425307666,1781686246000,-500.0,0.00027397,2]
[425307667,1781686246000,-647.42460837,0.00027397,2]
[425307669,1781686246000,-636.751961,0.00027397,2]
[425307682,1781686246000,-169.33130662,0.00027397,7]
[425307681,1781686246000,-1586.0,0.00027397,15]
[425307685,1781686246000,-558.65,0.000274,2]
[425307688,1781686246000,-2508.91,0.000274,2]
[425307684,1781686246000,-163.07967959,0.000274,2]
[425307686,1781686246000,-541.34,0.000274,2]
[425307708,1781686246000,-576.91672675,0.00027552,30]
[425307707,1781686246000,-2312.15,0.00027552,2]
[425307705,1781686246000,-2336.77,0.00027552,30]
[425307703,1781686246000,-1388.75,0.00027552,30]
[425307700,1781686246000,-1388.75,0.00027552,7]
[425307704,1781686246000,-2336.77,0.00027552,2]
[425307701,1781686246000,-1388.75,0.00027552,2]
[425307699,1781686246000,-1598.81,0.00027551,30]
[425307698,1781686246000,-1598.81,0.00027551,2]
[425307697,1781686246000,-1598.81,0.00027551,7]
[425307702,1781686246000,-2336.77,0.00027552,7]
[425307696,1781686246000,-215.56582253,0.00027549,2]
[425307695,1781686246000,-538.91455633,0.00027549,2]
[425307691,1781686246000,-2508.91,0.000274,2]
[425307683,1781686246000,-1559.68,0.000274,2]
[425307693,1781686246000,-500.0,0.000275,7]
[425307694,1781686246000,-189.78062088,0.00027546,2]
[425307689,1781686246000,-2508.91,0.000274,2]
[425307692,1781686246000,-779.60160318,0.00027452,2]
[425307706,1781686246000,-2312.15,0.00027552,7]
[425307687,1781686246000,-2508.91,0.000274,2]
[425307690,1781686246000,-2508.91,0.000274,2]
[425307745,1781686248000,-232.06864432,0.00027557,2]
[425307758,1781686248000,-360.89,0.00027623,30]
[425307746,1781686248000,-869.42,0.00027557,120]
[425307753,1781686248000,-150.0,0.00027606,5]
[425307750,1781686248000,-170.35503084,0.00027591,2]
[425307757,1781686248000,-2312.15,0.00027613,7]
[425307768,1781686248000,-369.945665,0.00027683,7]
[425307762,1781686248000,-360.89,0.00027653,2]
[425307770,1781686248000,-369.945665,0.00027683,7]
[425307764,1781686248000,-752.04,0.00027659,2]
[425307759,1781686248000,-558.65,0.00027628,7]
[425307760,1781686248000,-541.34,0.00027628,7]
[425307767,1781686248000,-369.945665,0.00027683,7]
[425307765,1781686248000,-500.0,0.00027682,2]
[425307766,1781686248000,-5796.93,0.00027683,2]
[425307754,1781686248000,-1388.75,0.00027613,7]
[425307769,1781686248000,-369.945665,0.00027683,7]
[425307743,1781686248000,-625.45843,0.00027557,7]
[425307736,1781686248000,-8004.65,0.00027553,30]
[425307749,1781686248000,-151.911254,0.00027576,7]
[425307725,1781686248000,-232.423239,0.0002192,2]
[425307728,1781686248000,-502.47833885,0.00023133,2]
[425307729,1781686248000,-1749.519,0.00023581,2]
[425307731,1781686248000,-770.86582448,0.00024244,2]
[425307734,1781686248000,-1735.23327325,0.00027552,30]
[425307735,1781686248000,-180.30525428,0.00027552,2]
[425307737,1781686248000,-7990.82,0.00027554,30]
[425307733,1781686248000,-9265.72,0.00027397,10]